fUST/lending_fUST_20260111
["ID","MTS","AMOUNT","RATE_DAILY","PERIOD"]
[401320521,1768133449537,-151.0,0.0003322,2]
[401320522,1768133449546,-151.0,0.0003322,31]
[401320523,1768133449555,-151.0,0.0003322,31]
[401320524,1768133449568,-161.662681,0.0003322,31]
[401320525,1768133449577,-151.0,0.0003322,31]
[401320526,1768133449586,-151.0,0.0003322,31]
[401320527,1768133449595,-151.0,0.0003322,31]
[401320528,1768133449604,-151.0,0.0003322,31]
[401320529,1768133449612,-151.0,0.0003322,31]
[401320530,1768133449621,-173.073557,0.0003322,31]
[401320531,1768133449629,-151.0,0.0003322,31]
[401320532,1768133449637,-151.0,0.0003322,31]
[401320533,1768133449648,-151.0,0.0003322,31]
[401320534,1768133449657,-151.0,0.0003322,31]
[401320535,1768133449667,-173.073557,0.0003322,31]
[401320536,1768133449677,-151.0,0.0003322,31]
[401320537,1768133449687,-151.0,0.0003322,31]
[401320538,1768133449698,-151.0,0.0003322,31]
[401320539,1768133449709,-173.073557,0.0003322,31]
[401320540,1768133449722,-173.073557,0.0003322,31]
[401320541,1768133449731,-151.0,0.0003322,31]
[401320542,1768133449742,-151.0,0.0003322,31]
[401320543,1768133449751,-1112.0,0.00033299,2]
[401320544,1768133449760,-354.0,0.00033313,7]
[401320545,1768133449769,-354.0,0.00033459,2]
[401320546,1768133449779,-328.0,0.00033514,2]
[401320547,1768133449788,-801.82496169,0.00033611,2]
[401320548,1768133449798,-155.5739919,0.00033635,10]
[401320549,1768133449808,-354.0,0.00033639,2]
[401320550,1768133449817,-500.0,0.0003365,120]
[401320551,1768133449826,-500.0,0.0003365,120]
[401320552,1768133449835,-500.0,0.0003365,120]
[401320553,1768133449844,-500.0,0.0003365,120]
[401320554,1768133449853,-500.0,0.0003365,120]
[401320555,1768133449862,-500.0,0.0003365,120]
[401320556,1768133449871,-500.0,0.0003365,120]
[401320557,1768133449882,-500.0,0.0003365,120]
[401320558,1768133449892,-500.0,0.0003365,120]
[401320559,1768133449903,-500.0,0.0003365,120]
[401320560,1768133449913,-500.0,0.0003365,120]
[401320561,1768133449923,-500.0,0.0003365,120]
[401320562,1768133449932,-500.0,0.0003365,120]
[401320563,1768133449942,-500.0,0.0003365,120]
[401320564,1768133449951,-500.0,0.0003365,120]
[401320565,1768133449961,-500.0,0.0003365,120]
[401320566,1768133449971,-500.0,0.0003365,120]
[401320567,1768133449982,-500.0,0.0003365,120]
[401320568,1768133449992,-500.0,0.0003365,120]
[401320569,1768133450001,-500.0,0.0003365,120]
[401320570,1768133450011,-500.0,0.0003365,120]
[401320571,1768133450020,-500.0,0.0003365,120]
[401320572,1768133450030,-500.0,0.0003365,120]
[401320573,1768133450039,-500.0,0.0003365,120]
[401320574,1768133450049,-500.0,0.0003365,120]
[401320575,1768133450058,-500.0,0.0003365,120]
[401320576,1768133450068,-500.0,0.0003365,120]
[401320577,1768133450077,-500.0,0.0003365,120]
[401320578,1768133450087,-500.0,0.0003365,120]
[401320579,1768133450097,-500.0,0.0003365,120]
[401320580,1768133450106,-500.0,0.0003365,120]
[401320581,1768133450115,-500.0,0.0003365,120]
[401320582,1768133450126,-500.0,0.0003365,120]
[401320583,1768133450135,-500.0,0.0003365,120]
[401320584,1768133450145,-500.0,0.0003365,120]
[401320585,1768133450155,-500.0,0.0003365,120]
[401320586,1768133450164,-500.0,0.0003365,120]
[401320587,1768133450174,-500.0,0.0003365,120]
[401320588,1768133450184,-500.0,0.0003365,120]
[401320589,1768133450193,-500.0,0.0003365,120]
[401320590,1768133450203,-500.0,0.0003365,120]
[401320591,1768133450213,-500.0,0.0003365,120]
[401320592,1768133450223,-500.0,0.0003365,120]
[401320593,1768133450233,-639.14,0.0003365,120]
[401320594,1768133450243,-494.3,0.00033658,6]
[401320595,1768133450252,-210.0,0.00033699,5]
[401320596,1768133450261,-13367.01,0.000337,14]
[401320597,1768133450271,-354.0,0.0003371,7]
[401320598,1768133450281,-588.0,0.00033724,7]
[401320599,1768133450291,-2600.19116857,0.00033729,2]
[401320600,1768133450301,-999.0,0.00033972,120]
[401320601,1768133450310,-328.0,0.00034017,2]
[401320602,1768133450320,-2600.19116857,0.00034023,2]
[401320603,1768133450329,-328.0,0.00034026,120]
[401320604,1768133450338,-328.0,0.00034086,2]
[401320605,1768133450348,-356.69,0.00034122,60]
[401320606,1768133450358,-800.0,0.00034164,2]
[401320607,1768133450367,-831.0,0.00034209,30]
[401320608,1768133450376,-720.0,0.00034209,30]
[401320609,1768133450386,-547.0,0.00034209,30]
[401320610,1768133450396,-356.69855,0.00034222,60]
[401320611,1768133450406,-979.02672324,0.00034299,2]
[401320612,1768133450416,-2600.19116857,0.00034323,2]
[401320613,1768133450425,-800.0,0.00034396,2]
[401320614,1768133450434,-1562.9919358,0.00034459,2]
[401320615,1768133450444,-22482.1833834,0.00034471,2]
[401320616,1768133450453,-1562.9919357,0.00034471,2]
[401320617,1768133450462,-15174.5583652,0.00034471,2]
[401320618,1768133450472,-629.16420479,0.00034472,2]
[401320619,1768133450481,-270.0,0.00034521,5]
[401320620,1768133450491,-3853.50508722,0.00034521,5]
[401320621,1768133450589,-6843.8250349,0.00034521,5]
[401320622,1768133450600,-846.089542,0.00034521,5]
[401320623,1768133450610,-854.92935723,0.00034521,5]
[401320624,1768133450620,-5000.0,0.00034536,3]
[401320625,1768133450631,-800.0,0.00034551,2]
[401320626,1768133450641,-276.60619642,0.00034556,2]
[401320627,1768133450650,-1106.4247857,0.00034556,2]
[401320628,1768133450660,-2489.45576782,0.00034556,2]
[401320629,1768133450669,-4425.69914279,0.00034556,2]
[401320630,1768133450679,-6915.15491061,0.00034556,2]
[401320631,1768133450688,-9957.82307128,0.00034556,2]
[401320632,1768133450698,-279.49613602,0.00034556,2]
[401320633,1768133450707,-1117.98454407,0.00034556,2]
[401320634,1768133450717,-2515.46522415,0.00034556,2]
[401320635,1768133450726,-4471.93817626,0.00034556,2]
[401320636,1768133450736,-6987.40340041,0.00034556,2]
[401320637,1768133450745,-10061.86089659,0.00034556,2]
[401320638,1768133450759,-1112.0,0.00034599,2]
[401320639,1768133450768,-932.46362,0.000346,16]
[401320640,1768133450778,-590.0,0.00034615,2]
[401320641,1768133450787,-1095.40809829,0.00034649,7]
[401320642,1768133450797,-250.0,0.00034649,7]
[401320643,1768133450806,-445.202766,0.00034649,7]
[401320644,1768133450816,-151.0,0.00034649,7]
[401320645,1768133450826,-162.380719,0.00034649,7]
[401320646,1768133450837,-461.67526834,0.00034649,7]
[401320647,1768133450848,-151.0,0.00034649,7]
[401320648,1768133450859,-223.13477496,0.00034649,7]
[401320649,1768133450872,-478.75725327,0.00034649,7]
[401320650,1768133450886,-250.0,0.00034649,7]
[401320651,1768133450895,-496.47127164,0.00034649,7]
[401320652,1768133450905,-153.90472729,0.00034649,7]
[401320653,1768133450914,-250.0,0.00034649,7]
[401320654,1768133450925,-514.84070869,0.00034649,7]
[401320655,1768133450935,-151.0,0.00034649,7]
[401320656,1768133450945,-533.88981491,0.00034649,7]
[401320657,1768133450955,-151.0,0.00034649,7]
[401320658,1768133450966,-562.55157284,0.00034649,7]
[401320659,1768133450975,-250.15738416,0.00034649,7]
[401320660,1768133450985,-250.0,0.00034649,7]
[401320661,1768133450995,-250.0,0.00034649,7]
[401320662,1768133451005,-151.0,0.00034649,7]
[401320663,1768133451015,-271.40103972,0.00034649,7]
[401320664,1768133451025,-151.0,0.00034649,7]
[401320665,1768133451034,-151.0,0.00034649,7]
[401320666,1768133451044,-151.0,0.00034649,7]
[401320667,1768133451053,-151.0,0.00034649,7]
[401320668,1768133451063,-151.0,0.00034649,7]
[401320669,1768133451073,-151.0,0.00034649,7]
[401320670,1768133451083,-151.0,0.00034649,7]
[401320671,1768133451093,-151.0,0.00034649,7]
[401320672,1768133451103,-151.0,0.00034649,7]
[401320673,1768133451113,-151.0,0.00034649,7]
[401320674,1768133451123,-151.0,0.00034649,7]
[401320675,1768133451132,-151.0,0.00034649,7]
[401320676,1768133451142,-151.0,0.00034649,7]
[401320677,1768133451152,-151.0,0.00034649,7]
[401320678,1768133451161,-151.0,0.00034649,7]
[401320679,1768133451171,-151.0,0.00034649,7]
[401320680,1768133451180,-151.0,0.00034649,7]
[401320681,1768133451190,-154.07167593,0.00034649,7]
[401320682,1768133451199,-2150.738,0.00034649,7]
[401320683,1768133451209,-151.0,0.0003465,7]
[401320684,1768133451218,-151.0,0.0003465,7]
[401320685,1768133451227,-151.76651056,0.0003465,7]
[401320686,1768133451237,-1758586.49454888,0.0003465,2]
[401320687,1768133451399,-500.0,0.00025069,2]
[401320688,1768133451408,-395.72,0.00032877,10]
[401320689,1768133451418,-4062.45270198,0.0003465,2]
[401320690,1768133513226,157.38,8.541e-05,2]
[401320691,1768133515352,-2529.08064684,8.603e-05,2]
[401320692,1768133515383,-10000.01,8.603e-05,2]
[401320693,1768133515423,-10000.01,8.603e-05,2]
[401320694,1768133515623,-10000.01,8.603e-05,2]
[401320695,1768133515774,-10000.01,8.603e-05,2]
[401320696,1768133515929,-10000.01,8.603e-05,2]
[401320697,1768133516025,-10000.01,8.603e-05,2]
[401320698,1768133516215,-10000.01,8.603e-05,2]
[401320699,1768133526963,-300.0,8.602e-05,2]
[401320700,1768133526998,-9400.01,8.603e-05,2]
[401320701,1768133527177,-10000.01,8.603e-05,2]
[401320702,1768133541156,-10000.01,8.603e-05,2]
[401320703,1768133541364,-10000.01,8.603e-05,2]
[401320704,1768133577721,151.0,0.00030137,120]
[401320705,1768133577889,222.28,6.803e-05,2]
[401320706,1768133578248,296.37,7.099e-05,2]
[401320707,1768133578647,370.46,7.394e-05,2]
[401320708,1768133579073,444.55,7.69e-05,2]
[401320709,1768133579482,518.64,7.986e-05,2]
[401320710,1768133579906,592.73,8.282e-05,2]
[401320711,1768133797653,171.89,6.957e-05,2]
[401320712,1768133798048,214.87,7.247e-05,2]
[401320713,1768133798466,257.84,7.537e-05,2]
[401320714,1768133798925,300.81,7.827e-05,2]
[401320715,1768133799335,343.79,8.116e-05,2]
[401320716,1768133799764,386.76,8.406e-05,2]
[401320717,1768133869418,151.5,7.895e-05,2]
[401320718,1768133869802,173.14,8.187e-05,2]
[401320719,1768133870200,194.78,8.48e-05,2]
[401320720,1768133872853,300.0,7.67e-05,2]
[401320721,1768134004247,354.84,5e-05,2]
[401320722,1768134004715,354.84,5.5e-05,2]
[401320723,1768134005343,354.84,6e-05,2]
[401320724,1768134005961,354.84,6.5e-05,2]
[401320725,1768134006639,354.84,7.1e-05,2]
[401320726,1768134007145,354.84,7.6e-05,2]
[401320727,1768134007619,354.84,8.1e-05,2]
[401320728,1768134070613,171.69587274,0.00023414,110]
[401320729,1768134138310,151.5,8.146e-05,2]
[401320730,1768134138719,170.43,8.437e-05,2]
[401320731,1768134188310,171.76743789,0.00022733,120]
[401320735,1768134263255,425.35,0.00030136,120]
[401320749,1768134495087,-500.0,8.599e-05,2]
[401320750,1768134495237,-466.23025444,8.599e-05,2]
[401320751,1768134495267,-500.0,8.599e-05,2]
[401320752,1768134495297,-346.13974556,8.599e-05,2]
[401320753,1768134495325,-300.0,8.599e-05,2]
[401320754,1768134495355,-227.09119251,8.599e-05,2]
[401320755,1768134496130,-7660.54880749,8.6e-05,2]
[401320756,1768134496198,-10000.01,8.6e-05,2]
[401320757,1768134496294,-10000.01,8.6e-05,2]
[401320760,1768134507898,-10000.01,8.502e-05,2]
[401320761,1768134508134,-10000.01,8.502e-05,2]
[401320762,1768134515661,-343.79472775,8.501e-05,2]
[401320763,1768134515690,-516.16193527,8.501e-05,2]
[401320764,1768134515720,-516.16193527,8.501e-05,2]
[401320765,1768134515750,-516.16193527,8.501e-05,2]
[401320766,1768134515779,-516.16193527,8.501e-05,2]
[401320767,1768134515808,-516.16193527,8.501e-05,2]
[401320768,1768134515836,-516.16193527,8.501e-05,2]
[401320769,1768134515865,-516.16193527,8.501e-05,2]
[401320770,1768134515895,-516.16193527,8.501e-05,2]
[401320771,1768134515925,-516.16193527,8.501e-05,2]
[401320772,1768134516673,-516.16193527,8.501e-05,2]
[401320773,1768134516704,-516.16193527,8.501e-05,2]
[401320774,1768134516733,-516.16193527,8.501e-05,2]
[401320775,1768134516763,-516.16193527,8.501e-05,2]
[401320776,1768134516793,-516.16193527,8.501e-05,2]
[401320777,1768134516823,-516.16193527,8.501e-05,2]
[401320778,1768134516853,-516.16193527,8.501e-05,2]
[401320779,1768134516883,-516.16193527,8.501e-05,2]
[401320780,1768134516913,-516.16193527,8.501e-05,2]
[401320781,1768134516941,-209.09516514,8.501e-05,2]
[401320782,1768134517144,-290.90483486,8.501e-05,2]
[401320783,1768134517173,-172.64846344,8.501e-05,2]
[401320784,1768134517203,-500.0,8.501e-05,2]
[401320785,1768134517233,-500.0,8.501e-05,2]
[401320786,1768134517265,-500.0,8.501e-05,2]
[401320787,1768134517295,-500.0,8.501e-05,2]
[401320788,1768134517327,-500.0,8.501e-05,2]
[401320789,1768134517357,-500.0,8.501e-05,2]
[401320790,1768134517386,-500.0,8.501e-05,2]
[401320791,1768134517415,-500.0,8.501e-05,2]
[401320792,1768134517444,-475.86560511,8.501e-05,2]
[401320793,1768134517585,-500.0,8.501e-05,2]
[401320794,1768134517616,-500.0,8.501e-05,2]
[401320795,1768134517644,-500.0,8.501e-05,2]
[401320796,1768134517674,-500.0,8.501e-05,2]
[401320797,1768134517705,-233.63528522,8.501e-05,2]
[401320798,1768134517737,-500.0,8.501e-05,2]
[401320799,1768134517767,-500.0,8.501e-05,2]
[401320800,1768134517796,-500.0,8.501e-05,2]
[401320801,1768134517825,-500.0,8.501e-05,2]
[401320802,1768134517854,-500.0,8.501e-05,2]
[401320803,1768134517881,-32.73942956,8.501e-05,2]
[401320804,1768134517999,-467.26057044,8.501e-05,2]
[401320805,1768134518035,-500.0,8.501e-05,2]
[401320806,1768134518063,-500.0,8.501e-05,2]
[401320807,1768134518091,-500.0,8.501e-05,2]
[401320808,1768134518272,-500.0,8.501e-05,2]
[401320809,1768134518310,-500.0,8.501e-05,2]
[401320810,1768134518341,-500.0,8.501e-05,2]
[401320811,1768134518371,-500.0,8.501e-05,2]
[401320812,1768134518402,-366.3369733,8.501e-05,2]
[401320813,1768134518431,-500.0,8.501e-05,2]
[401320814,1768134519574,-127.82686097,8.501e-05,2]
[401320815,1768134519595,-366.3369733,8.501e-05,2]
[401320816,1768134519609,-5.83616573,8.501e-05,2]
[401320817,1768134519619,-494.16383427,8.501e-05,2]
[401320818,1768134519633,-5.83616573,8.501e-05,2]
[401320819,1768134519643,-326.97874679,8.501e-05,2]
[401320820,1768134528572,-173.02125321,8.501e-05,2]
[401320821,1768134528603,-500.0,8.501e-05,2]
[401320822,1768134528630,-500.0,8.501e-05,2]
[401320823,1768134528660,-500.0,8.501e-05,2]
[401320824,1768134542088,-549.89618075,8.502e-05,2]
[401320825,1768134548148,-309.09397745,8.502e-05,2]
[401320826,1768134551504,-273.10462139,8.502e-05,2]
[401320827,1768134553144,-238.11990491,8.502e-05,2]
[401320828,1768134556021,-300.0,8.502e-05,2]
[401320830,1768134578925,500.0,8.501e-05,2]
[401320831,1768134578964,172.64846344,8.501e-05,2]
[401320832,1768134579029,500.0,8.501e-05,2]
[401320833,1768134579078,1290.40483817,8.501e-05,2]
[401320834,1768134579129,1290.40483817,8.501e-05,2]
[401320835,1768134579217,1290.40483817,8.501e-05,2]
[401320836,1768134579326,1290.40483817,8.501e-05,2]
[401320837,1768134599789,153.99,6.79e-05,2]
[401320838,1768134600206,165.70967746,7.099e-05,2]
[401320839,1768134600230,65.27032254,7.099e-05,2]
[401320840,1768134600605,307.97,7.408e-05,2]
[401320841,1768134601031,384.96,7.716e-05,2]
[401320842,1768134601457,461.96,8.025e-05,2]
[401320843,1768134601882,538.95,8.334e-05,2]
[401320844,1768134602169,300.0,8.501e-05,2]
[401320845,1768134604479,192.83,5e-05,2]
[401320846,1768134605054,192.83,5.5e-05,2]
[401320847,1768134605832,1200.0,8.501e-05,2]
[401320848,1768134605945,192.83,6e-05,2]
[401320849,1768134606528,192.83,6.5e-05,2]
[401320850,1768134607001,192.83,7.1e-05,2]
[401320851,1768134607558,192.83,7.6e-05,2]
[401320852,1768134608116,192.83,8.1e-05,2]
[401320862,1768134636105,-16014.6181985,8.502e-05,2]
[401320863,1768134636163,-1054.42585719,8.502e-05,2]
[401320872,1768134637844,-961260.72125981,8.502e-05,2]
[401320873,1768134637853,-539.0,8.502e-05,2]
[401320874,1768134637862,-22339.43119251,8.6e-05,2]
[401320875,1768134637870,-354.84,8.6e-05,2]
[401320876,1768134637879,-2870.56440792,8.6e-05,2]
[401320877,1768134637887,-192.83,8.6e-05,2]
[401320878,1768134637895,-228.80134121,8.601e-05,2]
[401320879,1768134637903,-455.65,8.602e-05,2]
[401320880,1768134637912,-615.94,8.642e-05,2]
[401320881,1768134637921,-300.0,8.774e-05,2]
[401320882,1768134637931,-300.0,8.774e-05,2]
[401320883,1768134637941,-300.0,8.774e-05,2]
[401320884,1768134637952,-300.0,8.774e-05,2]
[401320885,1768134637962,-300.0,8.774e-05,2]
[401320886,1768134637974,-300.0,8.774e-05,2]
[401320887,1768134637983,-300.0,8.774e-05,2]
[401320888,1768134637995,-300.0,8.774e-05,2]
[401320889,1768134638005,-300.0,8.774e-05,2]
[401320890,1768134638014,-300.0,8.774e-05,2]
[401320891,1768134638024,-300.0,8.774e-05,2]
[401320892,1768134638033,-300.0,8.774e-05,2]
[401320893,1768134638042,-300.0,8.774e-05,2]
[401320894,1768134638051,-300.0,8.774e-05,2]
[401320895,1768134638061,-300.0,8.774e-05,2]
[401320896,1768134638071,-600.0,8.774e-05,2]
[401320897,1768134638080,-455.65,8.876e-05,2]
[401320898,1768134638090,-692.93,8.951e-05,2]
[401320899,1768134638100,-354.84,9.1e-05,2]
[401320900,1768134638109,-192.83,9.1e-05,2]
[401320901,1768134638118,-455.65,9.15e-05,2]
[401320902,1768134638127,-769.93,9.259e-05,2]
[401320903,1768134638137,-420.0,9.351e-05,2]
[401320904,1768134638146,-455.65,9.424e-05,2]
[401320905,1768134638155,-38578.23677483,9.517e-05,2]
[401320906,1768134638165,-354.84,9.6e-05,2]
[401320907,1768134638174,-192.83,9.6e-05,2]
[401320908,1768134638305,-720.0,9.651e-05,2]
[401320909,1768134638324,-455.65900327,9.698e-05,2]
[401320910,1768134638334,-153.90472729,0.0001,2]
[401320911,1768134638343,-151.0,0.0001,2]
[401320912,1768134638353,-151.0,0.0001,2]
[401320913,1768134638363,-151.0,0.0001,2]
[401320914,1768134638373,-151.0,0.0001,2]
[401320915,1768134638383,-151.0,0.0001,2]
[401320916,1768134638393,-151.0,0.0001,2]
[401320917,1768134638402,-151.0,0.0001,2]
[401320918,1768134638411,-151.0,0.0001,2]
[401320919,1768134638421,-151.0,0.0001,2]
[401320920,1768134638431,-151.0,0.0001,2]
[401320921,1768134638440,-151.0,0.0001,2]
[401320922,1768134638450,-151.0,0.0001,2]
[401320923,1768134638459,-151.0,0.0001,2]
[401320924,1768134638469,-151.0,0.0001,2]
[401320925,1768134638479,-151.0,0.0001,2]
[401320926,1768134638489,-151.0,0.0001,2]
[401320927,1768134638498,-154.07167593,0.0001,2]
[401320928,1768134638508,-354.84,0.000101,2]
[401320929,1768134638517,-192.83,0.000101,2]
[401320930,1768134638527,-500.0,0.000101,2]
[401320931,1768134638537,-587.0,0.00010286,2]
[401320932,1768134638546,-500.0,0.00010374,2]
[401320933,1768134638555,-267.96760717,0.00010599,2]
[401320934,1768134638564,-354.84,0.000106,2]
[401320935,1768134638574,-192.83,0.000106,2]
[401320936,1768134638584,-864.0,0.00010616,2]
[401320937,1768134638593,-500.0,0.00010648,2]
[401320938,1768134638602,-500.0,0.00010922,2]
[401320939,1768134638612,-999.0,0.00010959,2]
[401320940,1768134638621,-151.0,0.00011,2]
[401320941,1768134638631,-151.0,0.000111,2]
[401320942,1768134638640,-500.0,0.00011196,2]
[401320943,1768134638650,-354.84,0.000112,2]
[401320944,1768134638659,-192.83,0.000112,2]
[401320945,1768134638669,-250.0,0.00011233,2]
[401320946,1768134638680,-151.0,0.000113,2]
[401320947,1768134638689,-823.0,0.00011314,2]
[401320948,1768134638699,-151.0,0.000114,2]
[401320949,1768134638708,-500.0,0.0001147,2]
[401320950,1768134638718,-151.0,0.000115,2]
[401320951,1768134638728,-1000.0,0.00011678,2]
[401320952,1768134638738,-151.0,0.000117,2]
[401320953,1768134638747,-354.84,0.000117,2]
[401320954,1768134638757,-192.83,0.000117,2]
[401320955,1768134638766,-500.0,0.00011744,2]
[401320956,1768134638776,-151.0,0.000118,2]
[401320957,1768134638786,-151.0,0.000119,2]
[401320958,1768134638795,-500.0,0.00012018,2]
[401320959,1768134638805,-151.0,0.000121,2]
[401320960,1768134638814,-151.0,0.000122,2]
[401320961,1768134638824,-354.84,0.000122,2]
[401320962,1768134638833,-192.83,0.000122,2]
[401320963,1768134638842,-500.0,0.00012292,2]
[401320964,1768134638851,-1432.63,0.00012329,2]
[401320965,1768134638862,-1193.86,0.00012329,2]
[401320966,1768134638871,-994.89,0.00012329,2]
[401320967,1768134638881,-829.07,0.00012329,2]
[401320968,1768134638891,-690.89,0.00012329,2]
[401320969,1768134638901,-575.74,0.00012329,2]
[401320970,1768134638912,-479.79,0.00012329,2]
[401320971,1768134638921,-399.82,0.00012329,2]
[401320972,1768134638931,-333.19,0.00012329,2]
[401320973,1768134638940,-277.65,0.00012329,2]
[401320974,1768134638949,-231.38,0.00012329,2]
[401320975,1768134638959,-192.82,0.00012329,2]
[401320976,1768134638968,-160.68,0.00012329,2]
[401320977,1768134638977,-803.42,0.00012329,2]
[401320978,1768134638988,-929.86199139,0.00012329,2]
[401320979,1768134638997,-929.86199139,0.00012329,2]
[401320980,1768134639007,-929.86199139,0.00012329,2]
[401320981,1768134639016,-929.86199139,0.00012329,2]
[401320982,1768134639025,-929.86199139,0.00012329,2]
[401320983,1768134639085,-929.86199139,0.00012329,2]
[401320984,1768134639095,-929.86199139,0.00012329,2]
[401320985,1768134639104,-929.86199139,0.00012329,2]
[401320986,1768134639114,-929.86199139,0.00012329,2]
[401320987,1768134639123,-929.86199139,0.00012329,2]
[401320988,1768134639133,-929.86199139,0.00012329,2]
[401320989,1768134639142,-929.86199139,0.00012329,2]
[401320990,1768134639152,-929.86199139,0.00012329,2]
[401320991,1768134639161,-929.86199139,0.00012329,2]
[401320992,1768134639171,-929.86199139,0.00012329,2]
[401320993,1768134639180,-929.86199139,0.00012329,2]
[401320994,1768134639189,-929.86199139,0.00012329,2]
[401320995,1768134639198,-929.86199139,0.00012329,2]
[401320996,1768134639207,-929.86199139,0.00012329,2]
[401320997,1768134639216,-929.86199139,0.00012329,2]
[401320998,1768134639226,-929.86199139,0.00012329,2]
[401320999,1768134639235,-929.86199139,0.00012329,2]
[401321000,1768134639245,-929.86199139,0.00012329,2]
[401321001,1768134639255,-929.86199139,0.00012329,2]
[401321002,1768134639263,-929.86199139,0.00012329,2]
[401321003,1768134639273,-929.86199139,0.00012329,2]
[401321004,1768134639283,-929.86199139,0.00012329,2]
[401321005,1768134639293,-929.86199139,0.00012329,2]
[401321006,1768134639303,-929.86199139,0.00012329,2]
[401321007,1768134639313,-929.86199139,0.00012329,2]
[401321008,1768134639323,-929.86199139,0.00012329,2]
[401321009,1768134639332,-929.86199139,0.00012329,2]
[401321010,1768134639343,-929.86199139,0.00012329,2]
[401321011,1768134639354,-929.86199139,0.00012329,2]
[401321012,1768134639363,-929.86199139,0.00012329,2]
[401321013,1768134639372,-929.86199139,0.00012329,2]
[401321014,1768134639381,-929.86199139,0.00012329,2]
[401321015,1768134639391,-929.86199139,0.00012329,2]
[401321016,1768134639401,-929.86199139,0.00012329,2]
[401321017,1768134639411,-929.86199139,0.00012329,2]
[401321018,1768134639421,-929.86199139,0.00012329,2]
[401321019,1768134639431,-929.86199139,0.00012329,2]
[401321020,1768134639441,-929.86199139,0.00012329,2]
[401321021,1768134639451,-929.86199139,0.00012329,2]
[401321023,1768134639461,-929.86199139,0.00012329,2]
[401321024,1768134639471,-929.86199139,0.00012329,2]
[401321025,1768134639480,-929.86199139,0.00012329,2]
[401321026,1768134639489,-929.86199139,0.00012329,2]
[401321027,1768134639498,-929.86199139,0.00012329,2]
[401321028,1768134639507,-929.86199139,0.00012329,2]
[401321029,1768134639516,-929.86199139,0.00012329,2]
[401321030,1768134639525,-929.86199139,0.00012329,2]
[401321031,1768134639535,-929.86199139,0.00012329,2]
[401321032,1768134639545,-929.86199139,0.00012329,2]
[401321033,1768134639554,-929.86199139,0.00012329,2]
[401321035,1768134639563,-929.86199139,0.00012329,2]
[401321037,1768134639573,-929.86199139,0.00012329,2]
[401321039,1768134639582,-929.86199139,0.00012329,2]
[401321041,1768134639591,-929.86199139,0.00012329,2]
[401321043,1768134639601,-929.86199139,0.00012329,2]
[401321045,1768134639610,-929.86199139,0.00012329,2]
[401321047,1768134639619,-929.86199139,0.00012329,2]
[401321049,1768134639628,-929.86199139,0.00012329,2]
[401321051,1768134639637,-929.86199139,0.00012329,2]
[401321053,1768134639646,-1468.20314429,0.00012329,2]
[401321055,1768134639655,-1468.20314429,0.00012329,2]
[401321057,1768134639664,-1468.20314429,0.00012329,2]
[401321059,1768134639673,-1468.20314429,0.00012329,2]
[401321061,1768134639682,-1468.20314429,0.00012329,2]
[401321063,1768134639692,-1468.20314429,0.00012329,2]
[401321065,1768134639701,-1468.20314429,0.00012329,2]
[401321067,1768134639710,-1468.20314429,0.00012329,2]
[401321069,1768134639719,-1468.20314429,0.00012329,2]
[401321071,1768134639728,-1468.20314429,0.00012329,2]
[401321073,1768134639737,-1468.20314429,0.00012329,2]
[401321075,1768134639746,-1468.20314429,0.00012329,2]
[401321077,1768134639755,-1468.20314429,0.00012329,2]
[401321079,1768134639764,-1468.20314429,0.00012329,2]
[401321081,1768134639773,-1468.20314429,0.00012329,2]